{"text_format":"1","workbook":"xlsx","n_sheets":5,"sheets":["Журнал взносов","1","2","3","4"],"not_rendered":{"charts":0,"images":0,"macros":1,"external_links":0,"defined_names":1,"comments":0,"pivot_tables":0},"unopened":[],"bounds":{"document_bytes":16777216,"sheet_cells":100000,"rows_first":2000,"rows_last":500,"rows_between":2000,"halvings":0,"cell_chars":16384,"cell_head_chars":4096},"cells_cut":0,"cells_raw":0,"read":"whole","date_system":"1900"}

{"sheet":"Журнал взносов","index":0,"n_rows":7,"n_cols":2,"rows_kept":7,"cut":false,"hidden":false,"merged":[]}
["Год",2020]
["Месяц","март"]
["Гараж",1]
["Показания",88]
["Эл.эн.",9]
["Аренда",101]
["Взносы",11]

{"sheet":"1","index":1,"n_rows":28,"n_cols":10,"rows_kept":28,"cut":false,"hidden":false,"merged":[[15,0,27,0],[2,0,14,0]]}
[null,1]
["Год","Месяц","Показания",null,null,null,"Эл.эн.","Аренда",null,"Взносы"]
[2020,"январь",0,null,null,null,0,0,null,0]
[null,"февраль",88,null,null,null,9,101,null,11]
[null,"март",0,null,null,null,0,0,null,0]
[null,"апрель",0,null,null,null,0,0,null,0]
[null,"май",0,null,null,null,0,0,null,0]
[null,"июнь",0,null,null,null,0,0,null,0]
[null,"июль",0,null,null,null,0,0,null,0]
[null,"август",0,null,null,null,0,0,null,0]
[null,"сентябрь",0,null,null,null,0,0,null,0]
[null,"октябрь",0,null,null,null,0,0,null,0]
[null,"ноябрь",0,null,null,null,0,0,null,0]
[null,"декабрь",0,null,null,null,0,0,null,0]
[null,"Всего:","-",null,null,null,{"$f":"SUM(G3:G14)","v":9},{"$f":"SUM(H3:H14)","v":101},null,{"$f":"SUM(J3:J14)","v":11}]
[2021,"январь",{"$f":"C14","v":0},null,null,null,0,0,null,0]
[null,"февраль",{"$f":"C16","v":0},null,null,null,0,0,null,0]
[null,"март",{"$f":"C17","v":0},null,null,null,0,0,null,0]
[null,"апрель",0,null,null,null,0,0,null,0]
[null,"май",0,null,null,null,0,0,null,0]
[null,"июнь",0,null,null,null,0,0,null,0]
[null,"июль",0,null,null,null,0,0,null,0]
[null,"август",0,null,null,null,0,0,null,0]
[null,"сентябрь",0,null,null,null,0,0,null,0]
[null,"октябрь",0,null,null,null,0,0,null,0]
[null,"ноябрь",0,null,null,null,0,0,null,0]
[null,"декабрь",0,null,null,null,0,0,null,0]
[null,"Всего:","-",null,null,null,{"$f":"SUM(G16:G27)","v":0},{"$f":"SUM(H16:H27)","v":0},null,{"$f":"SUM(J16:J27)","v":0}]

{"sheet":"2","index":2,"n_rows":28,"n_cols":10,"rows_kept":28,"cut":false,"hidden":false,"merged":[[2,0,14,0],[15,0,27,0]]}
[null,2]
["Год","Месяц","Показания",null,null,null,"Эл.эн.","Аренда",null,"Взносы"]
[2020,"январь",88,null,null,null,9,101,null,11]
[null,"февраль",0,null,null,null,0,0,null,0]
[null,"март",0,null,null,null,0,0,null,0]
[null,"апрель",0,null,null,null,0,0,null,0]
[null,"май",0,null,null,null,0,0,null,0]
[null,"июнь",0,null,null,null,0,0,null,0]
[null,"июль",0,null,null,null,0,0,null,0]
[null,"август",0,null,null,null,0,0,null,0]
[null,"сентябрь",0,null,null,null,0,0,null,0]
[null,"октябрь",0,null,null,null,0,0,null,0]
[null,"ноябрь",0,null,null,null,0,0,null,0]
[null,"декабрь",0,null,null,null,0,0,null,0]
[null,"Всего:","-",null,null,null,{"$f":"SUM(G3:G14)","v":9},{"$f":"SUM(H3:H14)","v":101},null,{"$f":"SUM(J3:J14)","v":11}]
[2021,"январь",{"$f":"C14","v":0},null,null,null,0,0,null,0]
[null,"февраль",{"$f":"C16","v":0},null,null,null,0,0,null,0]
[null,"март",{"$f":"C17","v":0},null,null,null,0,0,null,0]
[null,"апрель",0,null,null,null,0,0,null,0]
[null,"май",0,null,null,null,0,0,null,0]
[null,"июнь",0,null,null,null,0,0,null,0]
[null,"июль",0,null,null,null,0,0,null,0]
[null,"август",0,null,null,null,0,0,null,0]
[null,"сентябрь",0,null,null,null,0,0,null,0]
[null,"октябрь",0,null,null,null,0,0,null,0]
[null,"ноябрь",0,null,null,null,0,0,null,0]
[null,"декабрь",0,null,null,null,0,0,null,0]
[null,"Всего:","-",null,null,null,{"$f":"SUM(G16:G27)","v":0},{"$f":"SUM(H16:H27)","v":0},null,{"$f":"SUM(J16:J27)","v":0}]

{"sheet":"3","index":3,"n_rows":28,"n_cols":10,"rows_kept":28,"cut":false,"hidden":false,"merged":[[2,0,14,0],[15,0,27,0]]}
[null,3]
["Год","Месяц","Показания",null,null,null,"Эл.эн.","Аренда",null,"Взносы"]
[2020,"январь",0,null,null,null,0,0,null,0]
[null,"февраль",0,null,null,null,0,0,null,0]
[null,"март",0,null,null,null,0,0,null,0]
[null,"апрель",0,null,null,null,0,0,null,0]
[null,"май",0,null,null,null,0,0,null,0]
[null,"июнь",0,null,null,null,0,0,null,0]
[null,"июль",0,null,null,null,0,0,null,0]
[null,"август",0,null,null,null,0,0,null,0]
[null,"сентябрь",0,null,null,null,0,0,null,0]
[null,"октябрь",0,null,null,null,0,0,null,0]
[null,"ноябрь",0,null,null,null,0,0,null,0]
[null,"декабрь",0,null,null,null,0,0,null,0]
[null,"Всего:","-",null,null,null,{"$f":"SUM(G3:G14)","v":0},{"$f":"SUM(H3:H14)","v":0},null,{"$f":"SUM(J3:J14)","v":0}]
[2021,"январь",{"$f":"C14","v":0},null,null,null,0,0,null,0]
[null,"февраль",{"$f":"C16","v":0},null,null,null,0,0,null,0]
[null,"март",{"$f":"C17","v":0},null,null,null,0,0,null,0]
[null,"апрель",0,null,null,null,0,0,null,0]
[null,"май",0,null,null,null,0,0,null,0]
[null,"июнь",0,null,null,null,0,0,null,0]
[null,"июль",0,null,null,null,0,0,null,0]
[null,"август",0,null,null,null,0,0,null,0]
[null,"сентябрь",0,null,null,null,0,0,null,0]
[null,"октябрь",0,null,null,null,0,0,null,0]
[null,"ноябрь",0,null,null,null,0,0,null,0]
[null,"декабрь",0,null,null,null,0,0,null,0]
[null,"Всего:","-",null,null,null,{"$f":"SUM(G16:G27)","v":0},{"$f":"SUM(H16:H27)","v":0},null,{"$f":"SUM(J16:J27)","v":0}]

{"sheet":"4","index":4,"n_rows":28,"n_cols":10,"rows_kept":28,"cut":false,"hidden":false,"merged":[[2,0,14,0],[15,0,27,0]]}
[null,4]
["Год","Месяц","Показания",null,null,null,"Эл.эн.","Аренда",null,"Взносы"]
[2020,"январь",0,null,null,null,0,0,null,0]
[null,"февраль",0,null,null,null,0,0,null,0]
[null,"март",0,null,null,null,0,0,null,0]
[null,"апрель",0,null,null,null,0,0,null,0]
[null,"май",0,null,null,null,0,0,null,0]
[null,"июнь",0,null,null,null,0,0,null,0]
[null,"июль",0,null,null,null,0,0,null,0]
[null,"август",0,null,null,null,0,0,null,0]
[null,"сентябрь",0,null,null,null,0,0,null,0]
[null,"октябрь",0,null,null,null,0,0,null,0]
[null,"ноябрь",0,null,null,null,0,0,null,0]
[null,"декабрь",0,null,null,null,0,0,null,0]
[null,"Всего:","-",null,null,null,{"$f":"SUM(G3:G14)","v":0},{"$f":"SUM(H3:H14)","v":0},null,{"$f":"SUM(J3:J14)","v":0}]
[2021,"январь",{"$f":"C14","v":0},null,null,null,0,0,null,0]
[null,"февраль",{"$f":"C16","v":0},null,null,null,0,0,null,0]
[null,"март",{"$f":"C17","v":0},null,null,null,0,0,null,0]
[null,"апрель",0,null,null,null,0,0,null,0]
[null,"май",0,null,null,null,0,0,null,0]
[null,"июнь",0,null,null,null,0,0,null,0]
[null,"июль",0,null,null,null,0,0,null,0]
[null,"август",0,null,null,null,0,0,null,0]
[null,"сентябрь",0,null,null,null,0,0,null,0]
[null,"октябрь",0,null,null,null,0,0,null,0]
[null,"ноябрь",0,null,null,null,0,0,null,0]
[null,"декабрь",0,null,null,null,0,0,null,0]
[null,"Всего:","-",null,null,null,{"$f":"SUM(G16:G27)","v":0},{"$f":"SUM(H16:H27)","v":0},null,{"$f":"SUM(J16:J27)","v":0}]